Cogmind - Beta 16 @@@ ROGUE MODE // 2026.02.04 @ 08:56:49 Player: mule Result: Destroyed by G-47 Trooper with Particle Gun Performance ------------- Evolutions (2) 1000 Regions Visited (4) 800 Robots Destroyed (37) 185 Value Destroyed (986) 986 Prototype IDs (3) 60 Alien Tech Used (0) 0 Bonus (0) 0 TOTAL SCORE: 3031 Bonus ------- None Cogmind --------- Core Integrity 0/550 Matter 284/300 Energy 125/125 System Corruption 9% Temperature Cool (9) Movement Core (200) Ox3 Location -8/Materials Parts ------- > --- POWER (2) -------- Light Ion Engine > --- PROPULSION (3) --- (None) > --- UTILITY (4) ------ Small Storage Unit > --- WEAPON (2) ------- Mace Mace > --- INVENTORY (8) ---- (None) Peak State ------------ > --- POWER ------------ Heavy Ion Engine Cooled Ion Engine > --- PROPULSION ------- Aluminum Leg Aluminum Leg Aluminum Leg > --- UTILITY ---------- Improved Heat Sink Improved Heat Sink Small Storage Unit Power Shielding > --- WEAPON ----------- Improved EM Shotgun Improved EM Shotgun > --- INVENTORY -------- Improved Ion Engine Aluminum Leg Aluminum Leg Aluminum Leg Aluminum Leg Particle Cannon [Rating: 23] Favorites ----------- Power Light Ion Engine Engine Light Ion Engine Power Core Light Nuclear Core Propulsion Aluminum Leg Leg Aluminum Leg Flight Unit Flight Unit Utility Small Storage Unit Device Improved Heat Sink Storage Small Storage Unit Protection Power Shielding Weapon Particle Cannon Energy Gun Improved EM Shotgun Energy Cannon Particle Cannon Ballistic Gun Heavy Assault Rifle Launcher Grenade Launcher Impact Weapon Mace Build | -11 -10 -9 -9 -8 ------- Run | Yrd Mat Mat Min Mat Slots Evolved 4 | . . 2 . 2 Power 1 | . . 1 . . Propulsion 1 | . . 1 . . Utility 2 | . . . . 2 Weapon . | . . . . . Parts Attached 38 | 4 6 10 . 18 Power 8 | 1 1 4 . 2 Engine 7 | 1 1 3 . 2 Core 1 | . . 1 . . Reactor . | . . . . . Propulsion 10 | . 2 1 . 7 Treads . | . . . . . Leg 9 | . 2 1 . 6 Wheel . | . . . . . Hover . | . . . . . Flight 1 | . . . . 1 Utility 8 | 1 1 1 . 5 Device 6 | . 1 . . 5 Storage 1 | 1 . . . . Processor . | . . . . . Hackware . | . . . . . Protection 1 | . . 1 . . Artifact . | . . . . . Weapon 12 | 2 2 4 . 4 Energy Gun 4 | 1 1 1 . 1 Energy Cannon 3 | . . 2 . 1 Ballistic Gun 2 | 1 . 1 . . Ballistic Cannon . | . . . . . Launcher 1 | . 1 . . . Special Weapon . | . . . . . Impact Weapon 2 | . . . . 2 Slashing Weapon . | . . . . . Piercing Weapon . | . . . . . Special Melee Weapon . | . . . . . Unidentified Prototypes 3 | . . 3 . . Corrupted Parts 2 | . . . . 2 System Corruption 9 | . . . . 9 Parts Lost 23 | . . . . 23 Power 3 | . . . . 3 Propulsion 9 | . . . . 9 Utility 6 | . . . . 6 Weapon 5 | . . . . 5 Highest Loss Streak 20 | . . . . 20 To Critical Strikes 1 | . . . . 1 Average Backups 6 | 2 5 7 8 5 Power 1 | . 1 2 1 . Propulsion 1 | 1 1 1 3 2 Utility . | . . . 1 . Weapon 2 | . 2 3 3 1 Tool/Special . | . . . . . Unused Backups 9 | . 2 7 . . Power 5 | . 1 4 . . Propulsion . | . . . . . Utility 1 | . . 1 . . Weapon 3 | . 1 2 . . Tool/Special . | . . . . . Average Slot Usage (%) 84 | . 68 92 100 80 Engine 15 | . 14 11 22 17 Core 2 | . . 6 . . Leg 22 | . 9 30 33 21 Device 4 | . 1 4 . 12 Storage 11 | . 14 11 11 9 Protection 5 | . . 6 11 5 Energy Gun 9 | . 13 6 11 4 Energy Cannon 6 | . . 9 11 6 Launcher 5 | . 13 3 . 2 Peak Build Rating 23 | 4 8 17 17 23 Average Rating 11 | 3 5 12 17 16 On Entrance 9 | . 4 8 17 17 Avg Prop Armor Cover (%) . | . . . . . Naked Turns . | . . . . . Heaviest Build 31 | 10 16 29 29 31 Greatest Support 30 | 3 20 30 30 30 Greatest Overweight (x) 7 | 3 3 . . 7 Average Overweight (x) . | 2 1 . . . Largest Inventory Capacity 8 | 8 8 8 8 8 Average Capacity 7 | 7 8 8 8 8 Most Carried 8 | 4 7 8 8 8 Average Carried 6 | 2 5 7 8 5 Final Capacity 8 | 8 8 8 8 8 Final Carried 8 | 4 7 8 8 . Class Distribution -------------------- 92% | Mutant 7% | Scavenger-Mutant Dominant Class ---------------- Mutant | -10/Materials Mutant | -9/Materials Mutant | -9/Mines Mutant | -8/Materials Resources | -11 -10 -9 -9 -8 ----------- Run | Yrd Mat Mat Min Mat Matter Collected 728 | 201 85 260 2 180 Remotely . | . . . . . Salvage Created 1110 | . 101 528 . 481 Parts 65 | . 10 24 . 31 Haulers Intercepted 2 | . . 2 . . Recyclers Shooed . | . . . . . Parts Field Recycled . | . . . . . Retrieved Matter . | . . . . . Parts Self-Destructed . | . . . . . Prevented . | . . . . . Parts Restored . | . . . . . Kills | -11 -10 -9 -9 -8 ------- Run | Yrd Mat Mat Min Mat Combat Hostiles Destroyed 28 | . 5 9 . 14 Melee 1 | . . . . 1 Guns 10 | . 1 5 . 4 Cannons 4 | . . 2 . 2 AOE 12 | . 4 2 . 6 Classes Destroyed 9 | . 5 3 . 1 Worker 2 | . 1 . . 1 Builder 2 | . . 1 . 1 Hauler 2 | . . 2 . . Recycler 1 | . . . . 1 Operator 1 | . 1 . . . Watcher 1 | . 1 . . . Swarmer 9 | . 3 . . 6 Grunt 17 | . 2 8 . 7 Sentry 2 | . . 1 . 1 Best Kill Streak 8 | . 7 3 . 8 Combat Bots Only 6 | . 5 3 . 6 Max Kills in Single Turn 2 | . 2 2 . 2 Gunslinging . | . . . . . Exploded 2 | . 2 1 . 2 Melee 1 | . . . . 1 Uniques/NPCs Destroyed . | . . . . . Combat | -11 -10 -9 -9 -8 -------- Run | Yrd Mat Mat Min Mat Hostile Shots Fired 298 | . 13 33 . 252 Missed 94 | . 5 11 . 78 Hits 204 | . 8 22 . 174 Projectile 204 | . 8 22 . 174 Critical Strikes 7 | . . . . 7 Damage Taken 2554 | . 89 251 . 2214 Core 597 | . 11 36 . 550 Absorbed by Shields . | . . . . . Redirected to Shielding 50 | . . 9 . 41 Regen/Repaired (Parts) 106 | . . 47 . 59 Core Remaining (%) 95 | 100 95 . 91 . Volleys Fired 91 | . 36 30 3 22 Largest 2 | . 2 2 2 2 Hottest 136 | . 70 136 113 113 Shots Fired 136 | . 40 51 6 39 Gun 85 | . 36 32 3 14 Cannon 38 | . . 16 3 19 Launcher 13 | . 4 3 . 6 Special . | . . . . . Kinetic 16 | . 2 14 . . Thermal 86 | . 34 30 3 19 Explosive 13 | . 4 3 . 6 Electromagnetic 21 | . . 4 3 14 Robot Hit Streak 10 | . 3 10 . 8 Robot Miss Streak 3 | . 3 2 . 3 Penetration Max . | . . . . . Secondary Targets . | . . . . . Shots Hit Robots 77 | . 8 34 . 35 Core Hits 67 | . 11 20 1 35 Critical Kills . | . . . . . Critical Parts Destroyed 1 | . . . . 1 Critical Strikes 1 | . . . . 1 Smash 1 | . . . . 1 Melee Attacks 13 | . . . . 13 Impact 13 | . . . . 13 Slashing . | . . . . . Piercing . | . . . . . Sneak Attacks . | . . . . . Combat Hostiles . | . . . . . Follow-up Attacks . | . . . . . Damage Inflicted 2759 | . 492 813 15 1439 Guns 692 | . 111 372 . 209 Cannons 450 | . . 204 . 246 Explosions 1330 | . 375 228 . 727 Melee 257 | . . . . 257 Ramming 30 | . 6 9 15 . Kinetic 180 | . . 180 . . Thermal 761 | . 111 344 . 306 Explosive 1270 | . 375 228 . 667 Electromagnetic 261 | . . 52 . 209 Impact 257 | . . . . 257 Slashing . | . . . . . Piercing . | . . . . . Highest Corruption 9 | . . . . 9 Average Corruption 5 | . . . . 5 Corruption Purged . | . . . . . Corruption Blocked . | . . . . . Effects 5 | . . . . 5 Message Errors 2 | . . . . 2 Matter Fused 2 | . . . . 2 Heat Flow Errors 1 | . . . . 1 Overload Shots . | . . . . . Overflow Damage 69 | . . . . 69 Projectiles . | . . . . . Explosions 3 | . . . . 3 Melee 66 | . . . . 66 Knockbacks 1 | . . 1 . . Impact 1 | . . 1 . . Kinetic . | . . . . . Secondary . | . . . . . Self-Inflicted Damage 152 | . 3 . . 149 Shots 5 | . . . . 5 Rammed 1 | . 1 . . . Targets Rammed 7 | . 1 3 3 . Kicked 6 | . . 3 3 . Crushed . | . . . . . Highest Temperature 234 | . 48 234 162 138 Average Temperature 61 | . 16 65 85 64 Received Heat Transfer 1029 | . 39 117 . 873 Siege Activations . | . . . . . Martial Activations . | . . . . . Shielding Activations . | . . . . . Robots Disrupted . | . . . . . Combat Hostiles . | . . . . . Robots Corrupted 1 | . . . . 1 Combat Hostiles 1 | . . . . 1 Parts Fried 2 | . . . . 2 Impact Corruptions 2 | . . . . 2 Robots Melted . | . . . . . Combat Hostiles . | . . . . . Parts Melted . | . . . . . Heat Transferred 1496 | . 249 703 . 544 Parts Sabotaged . | . . . . . Parts Stolen . | . . . . . Parts Stripped . | . . . . . Power Chain Reactions 1 | . . . . 1 Alert | -11 -10 -9 -9 -8 ------- Run | Yrd Mat Mat Min Mat Maximum Alert Level . | . . . . . Low Security (%) 100 | 100 100 100 100 100 Level 1 . | . . . . . Level 2 . | . . . . . Level 3 . | . . . . . Level 4 . | . . . . . Level 5 . | . . . . . High Security . | . . . . . Max Security . | . . . . . Peak Influence 189 | . 172 80 51 189 Initial 41 | . . 41 21 . Average 42 | . 49 38 8 75 Influence Increases 942 | . 205 261 30 446 Destroy 0b10 Robot/C 560 | . 100 180 . 280 Destroy 0b10 Robot/NC 55 | . 15 25 . 15 Destroy Leader 96 | . 22 34 . 40 Successful Hack 7 | . . . . 7 Disable Machine 105 | . 60 . 30 15 Destroy Structure 59 | . 8 22 . 29 Lose Combat Pursuer 60 | . . . . 60 Influence Decreases 861 | . 106 306 84 365 Entered New Map 91 | . . 58 33 . Time Decay 550 | . 106 248 51 145 Lost Part 220 | . . . . 220 Squads Dispatched 7 | . . 2 . 5 Investigation 2 | . . 1 . 1 Extermination . | . . . . . Reinforcement 5 | . . 1 . 4 Assault . | . . . . . Garrison . | . . . . . Intercept . | . . . . . Searches Triggered . | . . . . . Construction Impeded 1 | . . . . 1 Haulers Reinforced . | . . . . . Active Scanning Responses . | . . . . . Cargo Convoy Interrupts . | . . . . . Stealth | -11 -10 -9 -9 -8 --------- Run | Yrd Mat Mat Min Mat Distress Signals 3 | . . 2 . 1 Communications Jammed . | . . . . . Distress Signals . | . . . . . Times Spotted 56 | . 9 22 . 25 Peak Tracking Total 9 | . 4 3 . 9 Tactical Retreats 4 | . . 2 . 2 ECM-based Alert Blocks 3 | . . 3 . . Traps | -11 -10 -9 -9 -8 ------- Run | Yrd Mat Mat Min Mat Traps Triggered 1 | . . 1 . . Indirectly . | . . . . . Trap Hack Attempts . | . . . . . Triggered . | . . . . . Disarmed . | . . . . . Reprogrammed . | . . . . . Reused . | . . . . . Traps Extracted . | . . . . . Installed . | . . . . . Triggered . | . . . . . Machines | -11 -10 -9 -9 -8 ---------- Run | Yrd Mat Mat Min Mat Machines Disabled 7 | . 4 . 2 1 Max in Single Turn 2 | . 2 . 2 1 Machines Repaired . | . . . . . Machines Dismantled . | . . . . . Machines Sabotaged . | . . . . . Overloaded Fab Kills . | . . . . . Hacking | -11 -10 -9 -9 -8 --------- Run | Yrd Mat Mat Min Mat Machines Accessed 9 | . 2 5 . 2 Terminals 5 | . 1 3 . 1 Fabricators . | . . . . . Repair Stations 2 | . . 1 . 1 Recycling Units 2 | . 1 1 . . Scanalyzers . | . . . . . Garrison Access . | . . . . . Total Hacks 24 | . 4 15 . 5 Successful 11 | . 2 5 . 4 Failed 13 | . 2 10 . 1 Catastrophic 1 | . 1 . . . Database Lockouts . | . . . . . Manual 7 | . 2 5 . . Terminals 11 | . 2 7 . 2 Fabricators . | . . . . . Repair Stations 8 | . . 5 . 3 Recycling Units 5 | . 2 3 . . Scanalyzers . | . . . . . Garrison Access . | . . . . . Terminal Hacks 1 | . . . . 1 Branch Access Points 1 | . . . . 1 Fabricator Hacks . | . . . . . Repair Station Hacks 7 | . . 4 . 3 Scan Component 4 | . . 2 . 2 Repair 3 | . . 2 . 1 Recycling Unit Hacks 3 | . 2 1 . . Report Inventory 2 | . 1 1 . . Retrieve Matter 1 | . 1 . . . Scanalyzer . | . . . . . Garrison Access Hacks . | . . . . . Unauthorized Hacks . | . . . . . Terminals . | . . . . . Fabricators . | . . . . . Repair Stations . | . . . . . Recycling Units . | . . . . . Scanalyzers . | . . . . . Garrison Access . | . . . . . Data Cores Recovered 1 | . 1 . . . Used . | . . . . . Hacking Detections 8 | . 1 5 . 2 Full Trace Events 1 | . . . . 1 Feedback Events . | . . . . . Feedback Blocked . | . . . . . Robot Schematics Acquired . | . . . . . Robots Built . | . . . . . Authchips . | . . . . . Time . | . . . . . Total Robot Build Rating . | . . . . . Part Schematics Acquired . | . . . . . Parts Built . | . . . . . Authchips . | . . . . . Time . | . . . . . Total Part Build Rating . | . . . . . Part Studies Acquired . | . . . . . Parts Repaired 3 | . . 2 . 1 Time 90 | . . 64 . 26 Parts Recycled . | . . . . . Recycled Matter . | . . . . . Retrieved Matter . | . . . . . Retrieved Components . | . . . . . Parts Scanalyzed . | . . . . . Part Schematics Acquired . | . . . . . Parts Damaged . | . . . . . Bothacking | -11 -10 -9 -9 -8 ------------ Run | Yrd Mat Mat Min Mat Used RIF Installer . | . . . . . Robots Hacked . | . . . . . Non-combat . | . . . . . Combat . | . . . . . Robot Hacks Applied . | . . . . . Relay Couplers Released . | . . . . . Fabnet Peak Effective % . | . . . . . Robots Rewired . | . . . . . Allies Hacked . | . . . . . Hacks Repelled . | . . . . . Allies | -11 -10 -9 -9 -8 -------- Run | Yrd Mat Mat Min Mat Total Allies . | . . . . . Largest Group . | . . . . . Highest-Rated Group . | . . . . . Highest-Rated Ally . | . . . . . Total Orders . | . . . . . Ally Attacks . | . . . . . Total Damage . | . . . . . Kills . | . . . . . Allies Corrupted . | . . . . . Allies Melted . | . . . . . Intel | -11 -10 -9 -9 -8 ------- Run | Yrd Mat Mat Min Mat Active Infowar (turns) 291 | . 63 228 . . ECM 291 | . 63 228 . . Robot Analysis Total . | . . . . . Derelict Logs Recovered 1 | . . . 1 . Drone Launches . | . . . . . Drone Recoveries . | . . . . . Exploration | -11 -10 -9 -9 -8 ------------- Run | Yrd Mat Mat Min Mat Turns Passed 2037 | 92 584 639 319 403 Spaces Moved 1046 | 45 262 339 256 144 Core 168 | 45 118 . . 5 Treads . | . . . . . Legs 878 | . 144 339 256 139 Wheels . | . . . . . Hover . | . . . . . Flight . | . . . . . Fastest Speed 50 | 50 120 120 120 120 Average Speed 137 | 186 156 120 120 157 Slowest Speed 400 | 200 200 120 120 400 Overloaded Moves . | . . . . . Propulsion Burnouts . | . . . . . Robots Hopped . | . . . . . Potential Cave-ins . | . . . . . Cave-ins Triggered . | . . . . . Exploration Rate (%) 34 | 5 49 29 68 19 Regions Visited 4 Branch Regions 1 Pre-discovered Areas 1 | . . . 1 . Known Exits Taken . | . . . . . Unknown Exits Taken 4 | 1 1 1 1 . Scrap Searched 1 | . . . 1 . Spaces Dug . | . . . . . Terrain Destroyed 63 | . 7 20 . 36 Melee . | . . . . . Projectile . | . . . . . AOE 63 | . 7 20 . 36 Terrain Rammed . | . . . . . Walls Destroyed . | . . . . . Machines Disabled . | . . . . . Actions | -11 -10 -9 -9 -8 --------- Run | Yrd Mat Mat Min Mat Total 1487 | 52 394 524 261 256 Wait 232 | . 79 104 . 49 Move 1042 | 44 261 338 255 144 Hop . | . . . . . Pick Up 32 | 4 7 16 . 5 Fast Attach 20 | 4 1 8 . 7 Attach 15 | . 2 1 . 12 Detach 1 | . . 1 . . Swap 12 | . 5 4 . 3 Drop 22 | . 2 19 . 1 Fire 91 | . 36 30 3 22 Melee 13 | . . . . 13 Ram 1 | . 1 . . . Kick 6 | . . 3 3 . Crush . | . . . . . Escape Stasis . | . . . . . Rewire . | . . . . . Trap . | . . . . . Miscellaneous . | . . . . . Route ------- -11/Scrapyard -10/Materials (discovered 2 exits: *Mat x2) -9/Materials -9/Mines -8/Materials History --------- Turn | Location | Event 13 | -11/Scrapyard | Discovered new exit (range 16) 93 | -11/Scrapyard | Entered Materials 316 | -10/Materials | Build established: Mutant 528 | -10/Materials | Discovered new exit (range 10) 668 | -10/Materials | Discovered new exit (range 5) 677 | -10/Materials | Entered another Materials area 677 | -9/Materials | Evolved 2 slots: Power x1, Propulsion x1 1001 | -9/Materials | Repaired Lgt. Nuclear Core 1029 | -9/Materials | Repaired Aluminum Leg 1253 | -9/Materials | Discovered new exit (range 15) 1316 | -9/Materials | Entered Mines 1323 | -9/Mines | Met a Derelict bent on vengeance 1484 | -9/Mines | Learned location of Storage (-9) 1495 | -9/Mines | Discovered new exit (range 11) 1635 | -9/Mines | Entered Materials 1635 | -8/Materials | Evolved 2 slots: Utility x2 1672 | -8/Materials | Repaired Aluminum Leg 1820 | -8/Materials | Lost 3 parts (1n2u) 1927 | -8/Materials | Core integrity fell below 50% 2018 | -8/Materials | Core integrity fell below 20% 2038 | -8/Materials | Destroyed by G-47 Trooper with Particle Gun Last Messages --------------- 01989_ 5FDN=,ZS1D